[Event "German Bundesliga 2023-24"]
[Site "Germany"]
[Date "2024.02.24"]
[Round "10.54"]
[White "Neef, Maximilian"]
[Black "Papp, Gabor"]
[Result "0-1"]
[ECO "A50"]
[WhiteElo "2466"]
[BlackElo "2530"]
[Annotator "RC"]
[PlyCount "97"]
[EventDate "2023.10.20"]
[EventType "team-tourn"]
[EventCountry "GER"]
[SourceTitle "playchess.com"]
[Source "ChessBase"]
[SourceQuality "1"]
[TimeControl "40/6000+30:3000+30"]

1. Nf3 {[%emt 0:00:05]} Nf6 {[%emt 0:00:11]} 2. d4 {[%emt 0:00:20]} b6 {[%emt 0:00:57]} 3. g3 {[%emt 0:00:32]} Bb7 {[%emt 0:00:06]} 4. c4 {[%emt 0:02:47]} g6 {[%emt 0:00:59]} 5. Bg2 {[%emt 0:00:12]} Bg7 {[%emt 0:00:06]} 6. O-O {[%emt 0:00:11]} O-O {[%emt 0:00:05]} 7. Bf4 {[%emt 0:02:01]} d6 {[%emt 0:07:43]} 8. Qc2 {[%emt 0:00:46]} c5 {[%emt 0:00:06]} 9. d5 {[%emt 0:05:23]} b5 {[%emt 0:01:41]} 10. e4 {[%emt 0:06:36]} bxc4 {[%emt 0:00:25]} 11. Nbd2 {[%emt 0:06:29]} a5 {[%emt 0:01:19]} 12. Nxc4 {[%emt 0:05:16]} Ba6 {[%emt 0:00:38]} 13. Nfd2 {[%emt 0:05:25]} Nbd7 {[%emt 0:07:35]} 14. Rfe1 {[%emt 0:06:28]} Ng4 {[%emt 0:04:16]} 15. Rab1 {[%emt 0:12:19]} Bd4 {[%emt 0:10:41]} 16. Re2 {[%emt 0:05:27]} Nb6 {[%emt 0:07:48]} 17. b3 {[%emt 0:04:59]} Rb8 {[%emt 0:12:08]} 18. h3 {[%emt 0:08:11]} Nxc4 {[%emt 0:02:50]} 19. Nxc4 {[%emt 0:00:59]} Ne5 {[%emt 0:12:02]} 20. Ree1 {[%emt 0:06:19]} Bxc4 {[%emt 0:08:23]} 21. bxc4 {[%emt 0:00:08]} Rb4 {[%emt 0:00:05]} 22. Bxe5 {[%emt 0:02:40]} dxe5 {[%emt 0:00:23]} 23. a3 {[%emt 0:00:10]} Rxb1 {[%emt 0:00:03]} 24. Rxb1 {[%emt 0:00:15]} f5 {[%emt 0:01:02]} 25. exf5 {[%emt 0:02:57]} Rxf5 {[%emt 0:02:33]} 26. Rf1 {[%emt 0:00:31]} Rf6 {[%emt 0:02:17]} 27. Be4 {[%emt 0:07:06]} Qf8 {[%emt 0:01:34]} 28. Qe2 {[%emt 0:01:17]} a4 {[%emt 0:05:13]} 29. Kg2 {[%emt 0:03:20]} Rb6 {[%emt 0:00:05]} 30. Bc2 {[%emt 0:03:07]} Rb2 {[%emt 0:00:48]} 31. h4 {[%emt 0:04:11]} Kg7 {[%emt 0:04:41]} 32. Qd3 {[%emt 0:02:09]} Qf5 {[%emt 0:02:09]} 33. Qxf5 {[%emt 0:01:27]} gxf5 {[%emt 0:00:01]} 34. Bxa4 {[%emt 0:00:37]} e4 {[%emt 0:00:05]} 35. Bd7 {[%emt 0:03:30]} Kf6 {[%emt 0:03:36]} 36. g4 {[%emt 0:03:16]} f4 {[%emt 0:04:20]} 37. g5+ {[%emt 0:00:50]} Ke5 {[%emt 0:01:37]} 38. h5 {[%emt 0:00:36]} e3 {[%emt 0:00:24]} 39. Kf3 {[%emt 0:00:29]} exf2 {[%emt 0:00:03]} 40. Rh1 {[%emt 0:00:36]} Rb3+ {[%emt 0:00:56]} 41. Ke2 {[%emt 0:06:33]} Ke4 {[%emt 0:16:33]} 42. Rd1 {[%emt 0:13:29]} Rxa3 {[%emt 0:08:16]} 43. g6 {[%emt 0:05:54]} hxg6 {[%emt 0:00:39]} 44. hxg6 {[%emt 0:00:38]} Re3+ {[%emt 0:01:25]} 45. Kf1 {[%emt 0:02:29]} Rg3 {[%emt 0:00:35]} 46. Ke2 {[%emt 0:02:57]} Rxg6 {[%emt 0:04:04]} 47. Bh3 {[%emt 0:05:17]} Rg1 {[%emt 0:01:59]} 48. Bf1 {[%emt 0:01:05]} f3+ {[%emt 0:00:35]} 49. Kd2 {[%emt 0:00:35]} 0-1

[Event "German Bundesliga 2023-24"]
[Site "Germany"]
[Date "2024.02.24"]
[Round "10.55"]
[White "Kramer, Julian"]
[Black "Boensch, Uwe"]
[Result "1/2-1/2"]
[ECO "B30"]
[WhiteElo "2470"]
[BlackElo "2456"]
[Annotator "TA"]
[PlyCount "89"]
[EventDate "2023.10.20"]
[EventType "team-tourn"]
[EventCountry "GER"]
[SourceTitle "playchess.com"]
[Source "ChessBase"]
[SourceQuality "1"]
[TimeControl "40/6000+30:3000+30"]

{[%evp 9,89,35,24,8,2,-6,2,0,0,0,3,6,9,0,7,0,57,52,48,-11,5,15,20,7,19,21,20,7,23,14,18,0,-14,0,0,0,0,0,22,0,0,0,0,0,0,0,0,0,0,-5,0,-6,0,0,0,0,27,6,9,0,8,0,0,0,0,0,0,0,0,0,0,0,0,0,0,0,0,0,0,0,0,0]} 1. e4 {[%emt 0:00:04]} c5 {[%emt 0:00:08]} 2. Nf3 {[%emt 0:00:04]} Nc6 {[%emt 0:00:32]} 3. Bb5 {[%emt 0:00:07]} e5 {[%emt 0:00:26]} 4. O-O {[%emt 0:00:24]} Bd6 {[%emt 0:00:11]} 5. d4 {[%emt 0:06:31]} Nxd4 {[%emt 0:00:16]} 6. Nxd4 {[%emt 0:00:28]} cxd4 {[%emt 0:00:06]} 7. c3 {[%emt 0:00:13]} Bc5 {[%emt 0:00:38]} 8. cxd4 {[%emt 0:04:52]} Bxd4 {[%emt 0:00:11]} 9. Nd2 {[%emt 0:00:06]} Nf6 {[%emt 0:03:48]} 10. Nf3 {[%emt 0:03:02]} Bc5 {[%emt 0:10:22]} 11. Nxe5 {[%emt 0:12:30]} O-O {[%emt 0:00:36]} 12. Bg5 {[%emt 0:19:56]} Be7 {[%emt 0:08:54]} (12... d6 $11 13. Nd3 Bd4) 13. Bxf6 {[%emt 0:22:55]} Bxf6 {[%emt 0:00:16]} 14. Nd3 {[%emt 0:00:07]} (14. Nxd7 $14 Bxd7 15. Bxd7) 14... d6 {[%emt 0:15:15]} 15. Bc4 {[%emt 0:00:16]} Bd7 {[%emt 0:00:16]} 16. Bd5 {[%emt 0:02:50]} Bc6 {[%emt 0:05:55]} 17. Bxc6 {[%emt 0:00:13]} bxc6 {[%emt 0:00:01]} 18. Rc1 {[%emt 0:00:07]} Re8 {[%emt 0:06:55]} 19. Rxc6 {[%emt 0:04:37]} Rxe4 {[%emt 0:03:40]} 20. b4 {[%emt 0:00:44]} Rc8 {[%emt 0:05:34]} 21. Qc2 {[%emt 0:07:09]} Rxc6 {[%emt 0:02:40]} 22. Qxc6 {[%emt 0:00:03]} d5 {[%emt 0:03:19]} 23. Re1 {[%emt 0:01:42]} Rxe1+ {[%emt 0:03:18]} 24. Nxe1 $11 {[%emt 0:00:04][%mdl 4096] Endgame. KQB-KQN} g6 {[%emt 0:03:26]} 25. Kf1 {[%emt 0:05:07]} Kg7 {[%emt 0:02:10]} 26. Nd3 {[%emt 0:00:32]} Bd4 {[%emt 0:04:36]} 27. g3 {[%emt 0:03:47]} Qg5 $1 {[%emt 0:02:25]} 28. Qc2 {[%emt 0:07:05]} Qf5 {[%emt 0:05:21]} 29. Qe2 {[%emt 0:00:08]} Qc8 {[%emt 0:06:27]} 30. b5 {[%emt 0:01:58]} a6 {[%emt 0:04:42]} 31. bxa6 {[%emt 0:01:42]} Qxa6 {[%emt 0:00:02]} 32. Nf4 {[%emt 0:01:13][%csl LRa6,LRd5]} Qc6 {[%emt 0:06:32]} 33. Qd2 {[%emt 0:01:38]} Qc4+ {[%emt 0:01:30] The position is equal.} 34. Qd3 {[%emt 0:01:02]} Qc5 {[%emt 0:01:55]} 35. Ne2 {[%emt 0:02:27]} Bxf2 {[%emt 0:03:50]} 36. Qc3+ {[%emt 0:00:03]} f6 {[%emt 0:00:21]} 37. Qxc5 {[%emt 0:01:11]} Bxc5 {[%emt 0:00:02] KB-KN} 38. Nf4 {[%emt 0:00:05]} Kf7 {[%emt 0:00:26] Prevents Ne6} 39. Nxd5 {[%emt 0:00:29]} Ke6 {[%emt 0:00:48]} 40. Nf4+ {[%emt 0:00:37]} Kd6 {[%emt 0:00:59]} 41. g4 {[%emt 0:05:32]} Ba3 {[%emt 0:01:20]} 42. Ke2 {[%emt 0:03:23]} Ke5 {[%emt 0:00:40]} 43. Kf3 {[%emt 0:00:28]} f5 {[%emt 0:01:38]} 44. g5 {[%emt 0:01:58]} Kd4 {[%emt 0:01:48]} 45. Ne6+ {[%emt 0:02:14] Weighted Error Value: White=0.05 (flawless) /Black=0.05 (flawless) .  Mistake:       	White=1     	Black=1      Inaccurate:     	---       	Black=1      OK:         	White=22    	Black=15     Best:        	---       	Black=1      Strong:       	---       	Black=1} 1/2-1/2

[Event "German Bundesliga 2023-24"]
[Site "Germany"]
[Date "2024.02.24"]
[Round "10.56"]
[White "Hoffmann, Paul"]
[Black "Zwirs, Nico"]
[Result "1/2-1/2"]
[ECO "B51"]
[WhiteElo "2378"]
[BlackElo "2476"]
[Annotator "TA"]
[PlyCount "118"]
[EventDate "2023.10.20"]
[EventType "team-tourn"]
[EventCountry "GER"]
[SourceTitle "playchess.com"]
[Source "ChessBase"]
[SourceQuality "1"]
[TimeControl "40/6000+30:3000+30"]

{[%evp 9,118,0,16,8,4,-4,-15,-11,-1,0,-3,-16,-18,-20,-8,-10,0,-22,0,-27,-8,-12,-8,-9,0,0,0,0,0,-10,0,-6,36,27,50,22,39,44,50,48,68,64,72,50,52,36,45,35,29,17,23,14,8,18,92,35,28,24,81,58,100,99,97,103,89,101,112,40,64,48,42,57,38,36,50,36,50,31,38,22,51,15,20,12,12,12,13,13,13,13,13,0,0,0,0,0,0,-8,-8,-8,-8,-8,-8,-8,-8,-8,-8,-8,-8,-8,-8]} 1. e4 {[%emt 0:00:03]} c5 {[%emt 0:00:01]} 2. Nf3 {[%emt 0:00:07]} d6 {[%emt 0:00:10]} 3. Bb5+ {[%emt 0:00:05]} Nd7 {[%emt 0:05:41]} 4. a4 {[%emt 0:01:52]} Ngf6 {[%emt 0:01:16]} 5. Nc3 {[%emt 0:00:17]} a6 {[%emt 0:00:14]} 6. Be2 {[%emt 0:00:27]} b6 {[%emt 0:00:30]} 7. O-O {[%emt 0:02:42]} Bb7 {[%emt 0:01:15]} 8. d3 {[%emt 0:00:08]} e6 {[%emt 0:12:08]} 9. Re1 {[%emt 0:25:38]} Be7 {[%emt 0:00:52]} 10. Bf1 {[%emt 0:00:05]} O-O {[%emt 0:01:30]} 11. Ne2 {[%emt 0:08:51]} Qc7 {[%emt 0:10:18]} 12. Ng3 {[%emt 0:04:26]} Rfe8 {[%emt 0:08:03]} 13. b3 {[%emt 0:04:11]} Bf8 {[%emt 0:04:47]} 14. Bb2 {[%emt 0:01:20]} g6 {[%emt 0:10:54]} 15. c3 {[%emt 0:08:28][%cal Bc2c3,Bc3c4,Bc4d5][%mdl 32]} e5 {[%emt 0:11:21]} 16. c4 {[%emt 0:10:04]} Bg7 {[%emt 0:00:30]} 17. Ne2 {[%emt 0:04:22]} Nf8 {[%emt 0:05:38]} 18. Nc3 {[%emt 0:01:55]} Ne6 {[%emt 0:01:29]} 19. Nd5 {[%emt 0:02:08]} Nxd5 {[%emt 0:03:32]} 20. cxd5 {[%emt 0:00:08]} Nf8 {[%emt 0:05:33]} 21. g3 {[%emt 0:09:45]} Bc8 {[%emt 0:02:31][%cal Bb7c8,Bc8d7,Bd7b5,Bb5c4][%mdl 32]} 22. Nh4 {[%emt 0:01:25]} Bd7 {[%emt 0:01:08]} 23. Qd2 {[%emt 0:02:12]} b5 {[%emt 0:05:11]} 24. axb5 {[%emt 0:02:35]} Bxb5 {[%emt 0:00:19]} 25. Bc3 {[%emt 0:01:51]} Qe7 {[%emt 0:00:39]} 26. Bh3 {[%emt 0:01:55]} h5 {[%emt 0:02:25]} 27. b4 {[%emt 0:02:45]} c4 {[%emt 0:00:56]} 28. dxc4 {[%emt 0:01:12]} Bxc4 {[%emt 0:00:04]} 29. Qc1 {[%emt 0:01:29]} Bb5 {[%emt 0:03:51]} 30. Bd2 {[%emt 0:05:24]} Bf6 {[%emt 0:00:09]} 31. Nf3 $36 {[%emt 0:01:27][%mdl 2048] White has good play.} Nd7 {[%emt 0:00:15] [#]} (31... Nh7 $11) 32. Be3 {[%emt 0:00:21]} (32. Bf1 $1 $16) 32... Rec8 {[%emt 0:06:29]} 33. Qd2 {[%emt 0:00:24]} Rc7 {[%emt 0:01:44]} (33... Qd8 $11) 34. Bf1 $16 {[%emt 0:01:51] Hoping for Bxb5.} Bxf1 {[%emt 0:02:59]} 35. Rxf1 {[%emt 0:00:23]} Qd8 {[%emt 0:01:11]} 36. Qd3 {[%emt 0:02:29] Inhibits Rc4.} Qb8 {[%emt 0:00:51]} 37. Rfb1 {[%emt 0:00:59] White has more active pieces.} Qb7 {[%emt 0:00:40]} 38. Ra5 {[%emt 0:01:09]} (38. Nd2 $16) 38... Rcc8 {[%emt 0:01:18]} 39. b5 {[%emt 0:01:49]} axb5 {[%emt 0:00:17]} 40. Raxb5 {[%emt 0:00:04]} Qa6 {[%emt 0:00:45]} 41. Nd2 {[%emt 0:03:32]} Be7 {[%emt 0:10:43]} 42. Qf1 {[%emt 0:04:24]} Nf6 {[%emt 0:14:11]} 43. Rb7 {[%emt 0:05:13]} Qxf1+ {[%emt 0:04:33]} 44. Kxf1 {[%emt 0:00:13]} Bf8 {[%emt 0:00:12]} 45. f3 {[%emt 0:01:10]} Ra3 {[%emt 0:03:24] The position is equal.} 46. Ke2 {[%emt 0:01:31]} (46. R7b3 {simplifies} Rxb3 47. Rxb3 Nh7 48. Rb6) 46... Rcc3 {[%emt 0:01:28]} 47. R1b3 {[%emt 0:03:26]} Rcxb3 {[%emt 0:01:48]} 48. Rxb3 {[%emt 0:00:30]} Rxb3 {[%emt 0:00:16]} 49. Nxb3 $11 {[%emt 0:00:14][%mdl 4096] Endgame. KBN-KBN} Ne8 {[%emt 0:01:44]} 50. g4 {[%emt 0:02:56]} hxg4 {[%emt 0:03:38]} 51. fxg4 {[%emt 0:00:07]} f5 {[%emt 0:00:05]} 52. gxf5 {[%emt 0:06:40]} gxf5 {[%emt 0:01:55]} 53. Bg5 {[%emt 0:04:12]} fxe4 {[%emt 0:01:31]} 54. Ke3 {[%emt 0:02:24]} Kf7 {[%emt 0:00:05]} 55. Nd2 {[%emt 0:01:37]} Kg6 {[%emt 0:06:58]} 56. h4 {[%emt 0:03:39]} Bh6 {[%emt 0:01:55]} 57. Bxh6 {[%emt 0:01:03]} Kxh6 {[%emt 0:00:02]} 58. Nc4 {[%emt 0:01:28]} Kg6 {[%emt 0:01:32]} 59. Kxe4 {[%emt 0:00:25]} Nf6+ {[%emt 0:01:14] Weighted Error Value: White=0.09 (flawless) /Black=0.12 (very precise) .  Mistake:       	White=2     	Black=2      Inaccurate:     	White=3     	Black=3      OK:         	White=19    	Black=21} 1/2-1/2

[Event "German Bundesliga 2023-24"]
[Site "Germany"]
[Date "2024.02.24"]
[Round "10.57"]
[White "Cheparinov, Ivan"]
[Black "Pfreundt, Jakob"]
[Result "1/2-1/2"]
[ECO "C02"]
[WhiteElo "2649"]
[BlackElo "2455"]
[Annotator "TA"]
[PlyCount "54"]
[EventDate "2023.10.20"]
[EventType "team-tourn"]
[EventCountry "GER"]
[SourceTitle "playchess.com"]
[Source "ChessBase"]
[SourceQuality "1"]
[TimeControl "40/6000+30:3000+30"]

{[%evp 13,54,7,26,40,48,24,15,17,33,33,36,12,51,42,40,0,0,4,8,0,0,0,0,0,0,-15,0,0,0,-28,30,23,17,0,0,0,0,0,0,0,0,0,0]} 1. e4 {[%emt 0:00:04]} e6 {[%emt 0:00:09]} 2. d4 {[%emt 0:00:08]} d5 {[%emt 0:00:05]} 3. e5 {[%emt 0:00:18]} c5 {[%emt 0:00:07]} 4. c3 {[%emt 0:00:05]} Nc6 {[%emt 0:00:07]} 5. Nf3 {[%emt 0:00:04]} Bd7 {[%emt 0:00:15]} 6. Be2 {[%emt 0:00:06]} Nge7 {[%emt 0:00:28]} 7. O-O {[%emt 0:00:09]} Nf5 {[%emt 0:00:39]} 8. dxc5 {[%emt 0:00:07]} a5 {[%emt 0:00:21]} 9. Nd4 {[%emt 0:01:28]} Nfxd4 {[%emt 0:12:00]} 10. cxd4 {[%emt 0:02:25]} b6 {[%emt 0:00:05]} 11. Be3 {[%emt 0:07:00]} bxc5 {[%emt 0:02:33]} 12. dxc5 {[%emt 0:00:02]} Qb8 {[%emt 0:34:11]} 13. Nc3 {[%emt 0:05:53] And now Na4 would win.} Qxe5 {[%emt 0:01:07] [#] ...d4 is the strong threat.} 14. Nb5 {[%emt 0:00:50]} Be7 $1 {[%emt 0:01:23]} 15. Qd2 {[%emt 0:01:39] Strongly threatening Bf4.} O-O {[%emt 0:00:50]} 16. f4 {[%emt 0:03:07]} Qb8 {[%emt 0:05:37]} 17. a4 {[%emt 0:05:23]} Rd8 {[%emt 0:03:29][%cal Od5d4]} 18. Rfc1 {[%emt 0:03:47]} Bf6 {[%emt 0:05:32]} 19. Ra3 {[%emt 0:00:34]} e5 {[%emt 0:09:09]} 20. fxe5 {[%emt 0:21:56]} Bxe5 {[%emt 0:00:21]} 21. Rf1 {[%emt 0:17:16]} (21. g3 $5) 21... Be6 {[%emt 0:05:15]} (21... Bxh2+ $142 22. Kh1 Be6) 22. Bf4 $11 {[%emt 0:03:56]} Bxf4 {[%emt 0:02:16]} 23. Qxf4 {[%emt 0:06:29] The position is equal.} Qxf4 {[%emt 0:00:09]} 24. Rxf4 {[%emt 0:00:03]} Rac8 {[%emt 0:01:10]} 25. Nd6 {[%emt 0:01:09]} Rc7 {[%emt 0:00:16]} 26. Nb5 {[%emt 0:00:05]} Rcc8 {[%emt 0:00:05]} 27. Nd6 {[%emt 0:00:06]} Rc7 $1 {[%emt 0:00:04] Weighted Error Value: White=0.07 (flawless) /Black=0.09 (flawless) .  Mistake:       	---       	Black=1      Inaccurate:     	White=2     	Black=1      OK:         	White=5     	Black=7      Best:        	White=1     	Black=3      Strong:       	---       	Black=2} 1/2-1/2

[Event "German Bundesliga 2023-24"]
[Site "Germany"]
[Date "2024.02.24"]
[Round "10.58"]
[White "Petkidis, Anthony"]
[Black "Bjerre, Jonas Buhl"]
[Result "1/2-1/2"]
[ECO "C56"]
[WhiteElo "2429"]
[BlackElo "2637"]
[Annotator "ChessBase"]
[PlyCount "41"]
[EventDate "2023.10.20"]
[EventType "team-tourn"]
[EventCountry "GER"]
[SourceTitle "playchess.com"]
[Source "ChessBase"]
[SourceQuality "1"]
[TimeControl "40/6000+30:3000+30"]

1. e4 {[%emt 0:00:25]} e5 {[%emt 0:00:09]} 2. Nf3 {[%emt 0:00:26]} Nc6 {[%emt 0:00:24]} 3. Bc4 {[%emt 0:00:56]} d6 {[%emt 0:01:01]} 4. d4 {[%emt 0:05:24]} Nf6 {[%emt 0:01:24]} 5. dxe5 {[%emt 0:03:48]} dxe5 {[%emt 0:00:44]} 6. Qxd8+ {[%emt 0:00:46]} Nxd8 {[%emt 0:00:11]} 7. Nxe5 {[%emt 0:05:04]} Bd6 {[%emt 0:00:26]} 8. Nf3 {[%emt 0:11:29]} Nxe4 {[%emt 0:02:03]} 9. O-O {[%emt 0:01:39]} Be6 {[%emt 0:03:43]} 10. Bxe6 {[%emt 0:02:51]} Nxe6 {[%emt 0:00:07]} 11. Re1 {[%emt 0:00:43]} Nf6 {[%emt 0:09:31]} 12. Ng5 {[%emt 0:04:24]} O-O {[%emt 0:06:25]} 13. Nxe6 {[%emt 0:08:47]} fxe6 {[%emt 0:00:26]} 14. Nc3 {[%emt 0:14:21]} Rad8 {[%emt 0:10:48]} 15. Bg5 {[%emt 0:11:11]} Bb4 {[%emt 0:09:53]} 16. Rxe6 {[%emt 0:03:39]} Bxc3 {[%emt 0:00:24]} 17. bxc3 {[%emt 0:00:06]} Rd5 {[%emt 0:01:25]} 18. Bxf6 {[%emt 0:11:32]} Rxf6 {[%emt 0:00:32]} 19. Rxf6 {[%emt 0:00:15]} gxf6 {[%emt 0:00:04]} 20. Kf1 {[%emt 0:00:28]} Rc5 {[%emt 0:08:59]} 21. Rb1 {[%emt 0:04:33]} 1/2-1/2

[Event "German Bundesliga 2023-24"]
[Site "Germany"]
[Date "2024.02.24"]
[Round "10.59"]
[White "Yuffa, Daniil"]
[Black "Walter, Stefan"]
[Result "1-0"]
[ECO "C84"]
[WhiteElo "2601"]
[BlackElo "2382"]
[Annotator "TA"]
[PlyCount "83"]
[EventDate "2023.10.20"]
[EventType "team-tourn"]
[EventCountry "GER"]
[SourceTitle "playchess.com"]
[Source "ChessBase"]
[SourceQuality "1"]
[TimeControl "40/6000+30:3000+30"]

{[%evp 13,83,16,20,0,20,20,30,19,31,24,31,16,29,12,20,10,16,7,64,26,45,27,69,49,70,59,81,56,79,56,65,39,22,33,64,33,45,0,0,0,0,0,12,14,14,6,15,8,22,21,23,6,6,0,0,0,0,0,0,0,0,0,0,0,8,11,364,398,391,353,359,352]} 1. e4 {[%emt 0:00:11]} e5 {[%emt 0:00:29]} 2. Nf3 {[%emt 0:00:10]} Nc6 {[%emt 0:00:21]} 3. Bb5 {[%emt 0:00:23][%cal Bf1b5,Bb5a4,Ba4b3][%mdl 32]} a6 {[%emt 0:00:14]} 4. Ba4 {[%emt 0:00:09]} Nf6 {[%emt 0:00:22]} 5. O-O {[%emt 0:00:28]} Be7 {[%emt 0:00:19]} 6. d3 {[%emt 0:00:16]} b5 {[%emt 0:00:38]} 7. Bb3 {[%emt 0:00:06]} d6 {[%emt 0:00:17]} 8. Bd2 {[%emt 0:00:13]} O-O {[%emt 0:14:41]} 9. h3 {[%emt 0:00:31]} Be6 {[%emt 0:05:30]} 10. Nc3 {[%emt 0:02:50] White has an edge.} Bxb3 {[%emt 0:08:07]} 11. axb3 {[%emt 0:07:06]} Re8 {[%emt 0:00:11]} 12. Re1 {[%emt 0:08:34]} Qd7 {[%emt 0:09:03]} 13. Bg5 {[%emt 0:08:45]} h6 {[%emt 0:19:04]} 14. Bh4 {[%emt 0:03:44]} Nb4 {[%emt 0:09:21]} 15. d4 {[%emt 0:05:04]} Rad8 {[%emt 0:03:17]} ({Better is} 15... exd4 $11 16. Nxd4 g6) 16. Na2 {[%emt 0:09:42]} Nxa2 {[%emt 0:07:04]} 17. Rxa2 {[%emt 0:00:12]} Qc6 {[%emt 0:00:15]} 18. Qd3 {[%emt 0:12:43]} ({Much worse is} 18. dxe5 dxe5 19. Qe2 Nd7 $11) 18... Nd7 {[%emt 0:02:43]} 19. d5 {[%emt 0:05:00]} Qb7 {[%emt 0:02:02]} 20. b4 {[%emt 0:00:46]} c6 {[%emt 0:07:00]} 21. Bxe7 {[%emt 0:09:49]} Rxe7 {[%emt 0:00:11]} 22. Nh4 {[%emt 0:03:50] White is more active.} g6 {[%emt 0:03:01] Wards off Nf5} 23. Rea1 {[%emt 0:03:56] [#] Hoping for dxc6.} Nb8 {[%emt 0:02:20]} 24. dxc6 {[%emt 0:03:04]} Qxc6 {[%emt 0:00:03]} 25. Nf3 {[%emt 0:00:46]} d5 {[%emt 0:05:08]} 26. Ra3 {[%emt 0:04:15]} Ree8 {[%emt 0:03:27]} 27. exd5 {[%emt 0:02:28]} Rxd5 {[%emt 0:00:37]} 28. Qe3 {[%emt 0:00:27]} Kg7 {[%emt 0:01:20]} 29. Rc3 {[%emt 0:02:18]} Qd6 {[%emt 0:00:07]} 30. Rc5 {[%emt 0:00:30]} Re6 {[%emt 0:01:10]} 31. Rxd5 {[%emt 0:02:30]} Qxd5 {[%emt 0:00:05]} 32. Nd2 {[%emt 0:00:15]} Nd7 {[%emt 0:02:38]} 33. Ne4 {[%emt 0:01:19]} Rc6 {[%emt 0:01:34][%cal Oc6c4]} 34. c3 {[%emt 0:02:28]} f5 {[%emt 0:01:38]} 35. Nd2 {[%emt 0:00:22][%cal Be4d2,Bd2f3,Bf3d4][%mdl 32]} Rd6 {[%emt 0:00:37]} 36. Nf3 {[%emt 0:00:44]} e4 {[%emt 0:02:35]} 37. Nd4 {[%emt 0:00:04]} Ne5 {[%emt 0:00:16]} 38. Qg3 {[%emt 0:03:14]} Kh7 {[%emt 0:00:34]} 39. f3 {[%emt 0:01:29]} Nc6 $2 {[%emt 0:01:06][%mdl 8192] [#]} (39... Rf6 $11) 40. Rxa6 $18 {[%emt 0:02:22] White is winning.} Ne5 {[%emt 0:00:00]} 41. fxe4 {[%emt 0:05:47]} fxe4 {[%emt 0:02:26]} 42. Ra5 {[%emt 0:03:32] Weighted Error Value: White=0.09 (flawless) /Black=0.28 (precise) .  Loses game:     	---       	Black=1      Mistake:       	---       	Black=1      Inaccurate:     	White=4     	Black=2      OK:         	White=13    	Black=12     Best:        	White=2     	Black=2} 1-0

[Event "German Bundesliga 2023-24"]
[Site "Germany"]
[Date "2024.02.24"]
[Round "10.60"]
[White "Lammers, Markus"]
[Black "Teclaf, Pawel"]
[Result "1/2-1/2"]
[ECO "E14"]
[WhiteElo "2336"]
[BlackElo "2571"]
[Annotator "TA"]
[PlyCount "61"]
[EventDate "2023.10.20"]
[EventType "team-tourn"]
[EventCountry "GER"]
[SourceTitle "playchess.com"]
[Source "ChessBase"]
[SourceQuality "1"]
[TimeControl "40/6000+30:3000+30"]

{[%evp 11,61,-8,20,0,8,5,0,0,39,16,42,37,34,35,22,24,10,25,22,-14,-17,-24,-4,-7,3,0,15,0,0,0,0,0,0,0,8,0,0,0,0,0,0,-3,0,0,0,0,0,0,0,0,0,0]} 1. d4 {[%emt 0:00:04]} e6 {[%emt 0:00:15]} 2. Nf3 {[%emt 0:02:28]} Nf6 {[%emt 0:00:30]} 3. e3 {[%emt 0:03:47]} b6 {[%emt 0:00:53]} 4. Bd3 {[%emt 0:01:00]} Bb7 {[%emt 0:00:06]} 5. O-O {[%emt 0:01:44]} d5 {[%emt 0:01:36]} 6. c4 {[%emt 0:01:12]} Nbd7 {[%emt 0:07:04]} 7. Nc3 {[%emt 0:01:46]} dxc4 {[%emt 0:10:40]} 8. Bxc4 {[%emt 0:00:03][%cal Oe3e4]} Bd6 {[%emt 0:00:08]} 9. Qe2 {[%emt 0:13:50]} Ne4 {[%emt 0:06:16]} 10. Ba6 {[%emt 0:15:48]} Qc8 {[%emt 0:10:34]} 11. Bd3 {[%emt 0:00:52]} Ndf6 {[%emt 0:08:02]} 12. Nb5 {[%emt 0:08:34]} Be7 {[%emt 0:08:40]} 13. Ne5 {[%emt 0:01:23]} O-O {[%emt 0:01:07]} 14. f3 {[%emt 0:00:47]} Nd6 {[%emt 0:04:07]} 15. e4 {[%emt 0:07:47]} Nxb5 {[%emt 0:06:04]} 16. Bxb5 {[%emt 0:00:22]} c5 {[%emt 0:00:10]} 17. Be3 {[%emt 0:07:50] The position is equal.} cxd4 {[%emt 0:04:03]} 18. Bxd4 {[%emt 0:00:24]} Bc5 {[%emt 0:02:52]} 19. Qe3 {[%emt 0:06:23]} Bxd4 {[%emt 0:01:15]} 20. Qxd4 {[%emt 0:00:03]} Rd8 {[%emt 0:00:05]} 21. Qe3 {[%emt 0:07:06] [#] Black must now prevent Rac1.} Qc7 {[%emt 0:02:16]} 22. Nd3 {[%emt 0:00:27]} Rac8 {[%emt 0:01:29]} 23. Rac1 {[%emt 0:01:59]} Qe7 {[%emt 0:02:33]} 24. Rfd1 {[%emt 0:01:36]} h6 {[%emt 0:05:13]} 25. a3 {[%emt 0:00:06]} Nd7 {[%emt 0:02:13][%cal Bf6d7,Bd7b8,Bb8c6][%mdl 32]} 26. h3 {[%emt 0:03:51]} Nb8 {[%emt 0:04:54]} 27. Nb4 {[%emt 0:01:07][%cal Bd3b4,Bb4a2,Ba2c3][%mdl 32]} Rxd1+ {[%emt 0:05:12]} 28. Rxd1 {[%emt 0:00:07]} Nc6 {[%emt 0:00:09]} 29. Na2 {[%emt 0:06:25]} Rd8 {[%emt 0:02:18]} 30. Rxd8+ {[%emt 0:01:56]} Qxd8 {[%emt 0:00:03]} 31. Nc3 {[%emt 0:00:11] Weighted Error Value: White=0.05 (flawless) /Black=0.06 (flawless) .  Inaccurate:     	White=1     	Black=2      OK:         	White=9     	Black=12     Best:        	---       	Black=1} 1/2-1/2